bitfinex/quotes_SOLUSD_20240626
["timestamp","ask_amount","ask_price","bid_price","bid_amount"]
[1719405387668,7.3047,136.9,136.87,6.1688]
[1719405387877,7.3042,136.91,136.87,6.1688]
[1719405388088,0.34,136.93,136.87,6.1688]
[1719405388292,7.6434,136.93,136.87,13.4749]
[1719405388485,7.3035,136.92,136.87,6.95979537]
[1719405389493,7.3035,136.92,136.87,7.30679725]
[1719405390497,7.3031,136.93,136.87,13.4749]
[1719405390811,5.95973909,136.96,136.87,6.1688]
[1719405390987,7.3026,136.94,136.88,7.3056]
[1719405391579,7.3021,136.95,136.89,7.305]
[1719405392397,7.3025,136.94,136.88,7.3054]
[1719405392691,7.3031,136.93,136.87,31.7389]
[1719405392998,7.3037,136.92,136.87,6.1688]
[1719405393378,18.2548,136.95,136.87,6.1688]
[1719405393581,0.34,136.94,136.87,6.1688]
[1719405393783,7.3043,136.91,136.87,6.1688]
[1719405393986,7.3046,136.9,136.87,6.1688]
[1719405394388,7.3052,136.89,136.87,6.1688]
[1719405395401,7.3054,136.89,136.87,6.1688]
[1719405396690,7.3046,136.9,136.87,6.1688]
[1719405397419,18.2588,136.93,136.84,0.04330186]
[1719405397701,7.3053,136.89,136.84,0.04330186]
[1719405397890,7.3047,136.9,136.84,0.04330186]
[1719405398284,7.3047,136.9,136.84,7.35100186]
[1719405398483,7.19100962,136.93,136.85,25.5749]
[1719405398686,6.01709869,136.96,136.85,21.6255]
[1719405398991,20.0,136.95,136.85,21.6255]
[1719405399185,20.0,136.95,136.87,18.265]
[1719405400516,7.3035,136.92,136.87,18.265]
[1719405401616,7.3032,136.93,136.87,18.265]
[1719405402115,7.3032,136.93,136.87,25.571]
[1719405402605,7.3026,136.94,136.89,15.2049]
[1719405403982,7.303,136.93,136.89,15.2049]
[1719405404714,7.3025,136.94,136.89,15.2049]
[1719405404898,7.3025,136.94,136.9,1.46060828]
[1719405405102,7.3025,136.94,136.89,15.2049]
[1719405406607,7.3032,136.93,136.89,15.2049]
[1719405406811,7.3036,136.92,136.89,15.2049]
[1719405408324,7.3041,136.91,136.89,15.2049]
[1719405409425,18.255,136.95,136.89,15.2049]
[1719405409721,0.34,136.94,136.89,15.2049]
[1719405410020,7.3035,136.92,136.89,15.2049]
[1719405412899,7.304,136.91,136.89,15.2049]
[1719405413293,18.2565,136.94,136.89,15.2049]
[1719405413714,0.34,136.95,136.89,15.2049]
[1719405414015,7.3032,136.93,136.89,15.2049]
[1719405414221,7.3027,136.94,136.9,1.46067765]
[1719405414398,7.3031,136.93,136.9,1.46067765]
[1719405414600,7.3027,136.94,136.9,1.46067765]
[1719405414800,7.303,136.93,136.9,1.46067765]
[1719405415001,7.3026,136.94,136.89,15.2049]
[1719405415501,7.3031,136.93,136.89,15.2049]
[1719405416301,7.3036,136.92,136.89,15.2049]
[1719405418118,7.3031,136.93,136.89,15.2049]
[1719405420220,27.19100962,136.95,136.89,15.2049]
[1719405420420,7.3024,136.94,136.89,15.2049]
[1719405421124,45.44600962,136.95,136.89,15.2049]
[1719405421518,7.3036,136.92,136.89,15.2049]
[1719405423229,7.3031,136.93,136.89,15.2049]
[1719405424735,7.3036,136.92,136.89,15.2049]
[1719405427132,7.303,136.93,136.89,15.2049]
[1719405427811,7.61098302,136.96,136.9,7.3045]
[1719405428016,7.61098302,136.96,136.91,8.76276491]
[1719405428241,7.301,136.97,136.91,27.02286491]
[1719405428442,7.3005,136.98,136.92,7.3034]
[1719405428629,7.3009,136.97,136.91,25.564]
[1719405428948,7.3009,136.97,136.92,1.46038879]
[1719405429127,7.3015,136.96,136.92,1.46038879]
[1719405429330,7.3015,136.96,136.9,7.3044]
[1719405429638,7.3025,136.94,136.89,15.2049]
[1719405429935,18.2522,136.97,136.89,15.2049]
[1719405430145,20.17,136.96,136.89,15.2049]
[1719405430436,7.3041,136.91,136.89,15.2049]
[1719405430643,7.3037,136.92,136.89,15.2049]
[1719405431009,7.3032,136.93,136.89,15.2049]
[1719405431214,20.17,136.96,136.89,15.2049]
[1719405431421,7.3026,136.94,136.89,15.2049]
[1719405431711,7.3022,136.95,136.89,22.5096]
[1719405431911,7.3022,136.95,136.9,7.3045]
[1719405432127,7.3022,136.95,136.91,1.46056266]
[1719405432323,7.3022,136.95,136.89,22.5098]
[1719405432324,7.3015,136.96,136.9,25.5653]
[1719405432926,14.49210962,136.97,136.91,7.304]
[1719405433732,7.3,136.99,136.93,22.9149]
[1719405433943,262.7993,137.0,136.94,19.71599386]
[1719405434244,262.7993,137.0,136.94,25.558]
[1719405434547,255.5,137.0,136.94,18.2558]
[1719405434730,255.5,137.0,136.95,7.3019]
[1719405435047,7.19100962,137.01,136.96,26.33510277]
[1719405435221,7.19100962,137.05,136.96,26.33510277]
[1719405435419,20.0,137.04,136.96,26.33510277]
[1719405435742,7.2986,137.02,136.96,24.8751]
[1719405435929,7.2986,137.02,136.96,32.1762]
[1719405436241,7.19100962,137.04,136.97,15.612]
[1719405436546,14.90347688,137.05,136.98,13.9218]
[1719405436722,7.2969,137.05,136.98,13.9218]
[1719405436918,7.2971,137.04,136.98,13.9218]
[1719405437122,7.2977,137.03,136.98,6.622]
[1719405438021,7.2973,137.04,136.98,6.622]
[1719405438732,7.2983,137.02,136.98,6.622]
[1719405439447,7.2978,137.03,136.98,6.622]
[1719405440023,7.2973,137.04,136.98,6.622]
[1719405440431,7.2985,137.02,136.98,6.622]
[1719405441238,7.2988,137.01,136.98,6.622]
[1719405441740,7.2994,137.0,136.97,15.612]
[1719405442435,7.2983,137.02,136.97,15.612]
[1719405442635,14.48870962,137.03,136.97,22.9127]
[1719405444723,7.60745684,137.07,136.99,7.2994]
[1719405445026,7.2971,137.04,136.99,18.2493]
[1719405445529,7.2971,137.04,136.98,7.3001]
[1719405445826,7.2978,137.03,136.97,22.9126]
[1719405448657,7.2984,137.02,136.97,15.612]
[1719405449341,7.2979,137.03,136.97,22.9128]
[1719405451960,53.20948556,137.06,136.97,22.9128]
[1719405451961,7.2969,137.05,136.98,18.2507]
[1719405452264,7.2969,137.05,136.99,13.9581]
[1719405452462,7.2971,137.04,136.99,6.6585]
[1719405453167,7.2977,137.03,136.99,6.6585]
[1719405453965,7.2982,137.02,136.99,6.6585]
[1719405454149,7.2992,137.0,136.97,15.612]
[1719405455035,7.2989,137.01,136.97,15.612]
[1719405456046,7.2984,137.02,136.97,15.612]
[1719405456247,7.2977,137.03,136.97,22.9128]
[1719405456563,7.2984,137.02,136.97,15.612]
[1719405457033,45.43240962,137.06,136.97,15.612]
[1719405457743,0.34,137.05,136.97,15.612]
[1719405458047,7.2975,137.04,136.98,7.3002]
[1719405458860,7.2977,137.03,136.97,22.9126]
[1719405459346,14.48700962,137.06,137.0,7.2988]
[1719405459542,7.2959,137.07,137.02,6.0321]
[1719405459873,7.295,137.08,137.03,16.1414]
[1719405460265,7.19100962,137.1,137.03,16.1414]
[1719405460266,7.2957,137.07,137.03,16.1414]
[1719405460771,7.2952,137.08,137.03,16.1414]
[1719405460971,7.2955,137.07,137.03,16.1414]
[1719405461145,7.2952,137.08,137.03,16.1414]
[1719405461956,7.2956,137.07,137.03,16.1414]
[1719405463761,18.2369,137.09,137.02,6.0321]
[1719405463966,27.53100962,137.08,137.02,6.0321]
[1719405464345,7.2968,137.05,137.02,6.0321]
[1719405465363,45.76980962,137.08,137.02,6.0321]
[1719405465569,7.2968,137.05,137.02,6.0321]
[1719405465948,7.2963,137.06,137.02,6.0321]
[1719405466649,7.2966,137.05,137.02,6.0321]
[1719405468867,7.2975,137.04,137.02,6.0321]
[1719405469468,7.2968,137.05,137.02,6.0321]
[1719405472572,53.37541776,137.08,137.02,6.0321]
[1719405473077,7.2974,137.04,137.02,6.0321]
[1719405473657,7.2968,137.05,137.02,6.0321]
[1719405474256,7.2971,137.04,137.02,6.0321]
[1719405474454,7.2976,137.03,137.02,6.0321]
[1719405474669,7.2976,137.03,136.99,16.435]
[1719405475269,7.2973,137.04,136.99,16.435]
[1719405475685,7.298,137.03,136.99,16.435]
[1719405476356,7.2982,137.02,136.99,16.435]
[1719405476762,7.2982,137.02,136.98,6.5789]
[1719405478180,18.2416,137.05,136.96,15.9623]
[1719405478360,151.78611776,137.08,136.96,15.9623]
[1719405478361,7.2995,137.0,136.96,15.9623]
[1719405478685,25.43540962,137.03,136.96,15.9623]
[1719405478877,7.2989,137.01,136.96,15.9623]
[1719405482585,7.2993,137.0,136.96,15.9623]
[1719405483787,7.3003,136.98,136.96,15.9623]
[1719405483977,7.2999,136.99,136.96,15.9623]
[1719405484164,7.3004,136.98,136.96,15.9623]
[1719405484360,7.3,136.99,136.96,15.9623]
[1719405484575,7.3004,136.98,136.96,15.9623]
[1719405484767,7.301,136.97,136.94,6.177]
[1719405484973,7.3005,136.98,136.94,6.177]
[1719405485175,26.91,136.96,136.94,6.177]
[1719405487292,7.3009,136.97,136.94,6.177]
[1719405487589,18.2496,136.99,136.92,15.3679]
[1719405487891,20.34,136.98,136.92,15.3679]
[1719405488097,7.3017,136.96,136.91,6.1167]
[1719405488270,7.302,136.95,136.91,6.1167]
[1719405488471,7.3016,136.96,136.91,6.1167]
[1719405488973,7.301,136.97,136.91,13.4206]
[1719405489492,7.3014,136.96,136.91,6.1167]
[1719405489886,7.19100962,136.99,136.92,18.2585]
[1719405490080,26.91,136.96,136.92,25.5618]
[1719405490274,7.3008,136.97,136.92,18.2585]
[1719405490970,7.3008,136.97,136.91,13.4205]
[1719405491167,7.3015,136.96,136.91,6.1167]
[1719405491994,34.10100962,136.99,136.91,6.1167]
[1719405492196,7.303,136.93,136.91,6.1167]
[1719405492703,7.3027,136.94,136.91,6.1167]
[1719405493474,7.302,136.95,136.91,6.1167]
[1719405494675,14.79644554,136.96,136.91,6.1167]
[1719405494878,14.79644554,136.96,136.92,7.3034]
[1719405494879,7.19100962,136.96,136.92,7.3034]
[1719405495079,7.19100962,136.96,136.91,13.4205]
[1719405495910,7.3022,136.95,136.91,6.1167]
[1719405496709,14.49250962,136.96,136.91,6.1167]
[1719405497489,7.19100962,136.96,136.91,6.1167]
[1719405498106,7.3019,136.95,136.91,6.1167]
[1719405498813,7.3035,136.92,136.91,6.1167]
[1719405498992,7.3031,136.93,136.91,6.1167]
[1719405499189,7.3026,136.94,136.91,6.1167]
[1719405499909,7.3026,136.94,136.89,15.1247]
[1719405500919,14.49300962,136.95,136.89,22.4296]
[1719405501294,7.19100962,136.95,136.9,18.2612]
[1719405501499,7.3011,136.97,136.91,7.78806151]
[1719405501704,20.0,136.96,136.91,7.3038]
[1719405501900,27.3014,136.96,136.91,7.3038]
[1719405502097,27.3014,136.96,136.9,25.5655]
[1719405502304,7.3009,136.97,136.91,7.3039]
[1719405505201,7.3014,136.96,136.9,25.5655]
[1719405507620,7.3016,136.96,136.9,25.5657]
[1719405508127,7.3019,136.95,136.9,18.2612]
[1719405508615,7.3016,136.96,136.9,25.5657]
[1719405510234,7.301,136.97,136.91,7.304]
[1719405511332,7.3014,136.96,136.9,25.5655]
[1719405511831,7.3027,136.94,136.89,15.1247]
[1719405512219,7.3039,136.92,136.89,15.1247]
[1719405512425,7.3041,136.91,136.89,15.1247]
[1719405512636,7.3037,136.92,136.89,15.1247]
[1719405513605,18.2548,136.95,136.89,15.1247]
[1719405513606,7.3041,136.91,136.89,15.1247]
[1719405514629,26.95,136.9,136.89,15.1247]
[1719405515506,26.95,136.9,136.88,6.0882]
[1719405515839,7.3041,136.91,136.88,6.0882]
[1719405517012,7.3047,136.9,136.88,6.0882]
[1719405517707,7.3042,136.91,136.88,6.0882]
[1719405518310,7.3042,136.91,136.86,16.4793]
[1719405518807,26.95,136.87,136.85,6.4219]
[1719405519030,26.95,136.86,136.85,6.4219]
[1719405519338,34.2567,136.86,136.85,6.4219]
[1719405519633,26.95,136.86,136.84,0.04330186]
[1719405519832,7.3065,136.87,136.84,0.04330186]
[1719405520328,26.95,136.85,136.84,0.04330186]
[1719405521238,34.2572,136.85,136.84,0.04330186]
[1719405521821,7.3072,136.85,136.84,0.04330186]
[1719405522029,7.3067,136.86,136.84,0.04330186]
[1719405522236,0.17,136.88,136.84,0.04330186]
[1719405522536,0.17,136.87,136.84,0.04330186]
[1719405522835,7.3071,136.86,136.84,0.04330186]
[1719405523139,7.3072,136.85,136.84,0.04330186]
[1719405524711,34.2572,136.85,136.84,0.04330186]
[1719405526440,7.3072,136.85,136.84,0.04330186]
[1719405528455,7.6472,136.85,136.84,0.04330186]
[1719405531649,14.83820962,136.85,136.84,0.04330186]
[1719405531828,34.83820962,136.85,136.84,0.04330186]
[1719405532135,64.83820962,136.85,136.84,0.04330186]
[1719405532511,44.83820962,136.85,136.84,0.04330186]
[1719405533119,52.44142519,136.85,136.84,0.04330186]
[1719405535554,70.70952519,136.85,136.84,0.04330186]
[1719405535841,90.70952519,136.85,136.84,0.04330186]
[1719405536337,18.2708,136.83,136.74,22.2973]
[1719405536537,7.53100962,136.82,136.74,22.2973]
[1719405537042,7.3103,136.8,136.74,29.6101]
[1719405537228,7.53100962,136.82,136.74,22.2973]
[1719405537426,7.3104,136.8,136.74,29.6104]
[1719405537839,7.3104,136.79,136.74,22.2973]
[1719405538553,7.3115,136.78,136.74,22.2973]
[1719405539431,7.3105,136.79,136.74,22.2973]
[1719405542839,25.80330962,136.82,136.74,22.2973]
[1719405543046,7.311,136.78,136.74,22.2973]
[1719405543551,7.3106,136.79,136.74,22.2973]
[1719405543749,33.40607889,136.82,136.74,22.2973]
[1719405543948,7.3113,136.78,136.74,22.2973]
[1719405544766,18.2749,136.8,136.74,22.2973]
[1719405544940,25.46590962,136.8,136.74,22.2973]
[1719405545145,7.3113,136.78,136.74,22.2973]
[1719405545464,7.19100962,136.8,136.74,49.2473]
[1719405545762,14.50100962,136.8,136.74,74.8427]
[1719405545974,14.50100962,136.8,136.74,47.8927]
[1719405546452,7.3105,136.79,136.74,40.58]
[1719405547861,7.3105,136.79,136.74,22.2973]
[1719405548165,7.311,136.78,136.74,22.2973]
[1719405548763,7.19100962,136.8,136.74,29.6103]
[1719405548960,7.3104,136.79,136.74,29.6103]
[1719405549165,26.95,136.78,136.74,22.2973]
[1719405550068,7.311,136.78,136.74,22.2973]
[1719405550365,14.50120962,136.8,136.74,56.5603]
[1719405550567,7.19100962,136.8,136.75,7.3125]
[1719405551170,14.50090962,136.8,136.74,56.5602]
[1719405552866,7.3105,136.79,136.74,49.2473]
[1719405553060,7.311,136.78,136.74,22.2973]
[1719405553264,7.3121,136.76,136.74,22.2973]
[1719405553467,7.3133,136.74,136.7,6.0224]
[1719405553773,26.95,136.72,136.7,6.0224]
[1719405554175,34.264,136.73,136.7,6.0224]
[1719405554664,7.3128,136.75,136.7,6.0224]
[1719405554870,0.34,136.79,136.7,51.2603]
[1719405555078,34.2611,136.78,136.73,26.95]
[1719405555375,34.2611,136.78,136.7,24.3103]
[1719405555376,7.3126,136.75,136.71,26.95]
[1719405555871,18.279,136.77,136.7,6.0224]
[1719405556076,7.3137,136.73,136.7,6.0224]
[1719405556374,7.3132,136.74,136.7,6.0224]
[1719405556858,7.3127,136.75,136.7,6.0224]
[1719405557061,7.3126,136.76,136.7,40.2876]
[1719405557377,34.2639,136.73,136.7,6.0224]
[1719405557560,26.95,136.73,136.7,6.0224]
[1719405558263,34.2637,136.73,136.7,6.0224]
[1719405558656,0.17,136.75,136.7,6.0224]
[1719405558968,7.483,136.75,136.7,6.0224]
[1719405559166,26.95,136.74,136.7,6.0224]
[1719405559573,34.2631,136.74,136.7,6.0224]
[1719405559755,7.19100962,136.76,136.7,6.0224]
[1719405560086,7.3133,136.74,136.7,6.0224]
[1719405561178,7.3136,136.73,136.7,6.0224]
[1719405561686,7.3133,136.74,136.7,6.0224]
[1719405563612,7.3137,136.73,136.7,6.0224]
[1719405563908,7.3132,136.74,136.7,6.0224]
[1719405564293,7.3128,136.75,136.7,6.0224]
[1719405564486,7.19100962,136.76,136.7,6.0224]
[1719405564805,7.19100962,136.76,136.71,7.3146]
[1719405565105,14.50300962,136.76,136.71,7.3146]
[1719405565403,14.50300962,136.76,136.7,40.2875]
[1719405565711,7.3126,136.75,136.7,6.0224]
[1719405566413,7.3131,136.74,136.7,6.0224]
[1719405567503,7.3127,136.75,136.7,6.0224]
[1719405567890,7.3132,136.74,136.7,6.0224]
[1719405569115,7.3128,136.75,136.7,6.0224]
[1719405570418,26.95,136.74,136.7,13.3375]
[1719405570712,26.95,136.74,136.7,6.0224]
[1719405571406,7.3142,136.73,136.7,6.0224]
[1719405571792,7.19100962,136.76,136.7,6.0224]
[1719405572105,7.3132,136.74,136.7,6.0224]
[1719405572305,7.3139,136.73,136.7,6.0224]
[1719405575515,7.3133,136.74,136.7,6.0224]
[1719405575697,7.6527,136.75,136.7,6.0224]
[1719405576510,7.3127,136.75,136.7,6.0224]
[1719405576811,7.19100962,136.76,136.7,6.0224]
[1719405576812,7.3132,136.74,136.7,6.0224]
[1719405578301,7.3129,136.75,136.7,6.0224]
[1719405579511,7.3131,136.74,136.7,6.0224]
[1719405582916,26.95,136.73,136.7,6.0224]
[1719405584005,7.3143,136.72,136.7,6.0224]
[1719405585894,7.3138,136.73,136.7,6.0224]
[1719405587031,25.47230962,136.76,136.7,6.0224]
[1719405587032,7.3142,136.72,136.7,6.0224]
[1719405587323,7.3139,136.73,136.7,6.0224]
[1719405589828,7.3133,136.74,136.7,6.0224]
[1719405590194,7.3137,136.73,136.7,6.0224]
[1719405591298,7.3133,136.74,136.7,6.0224]
[1719405591493,7.3128,136.75,136.7,6.0224]
[1719405591702,7.3132,136.74,136.7,6.0224]
[1719405592006,14.50340962,136.76,136.7,32.9724]
[1719405592333,7.19100962,136.76,136.72,7.3142]
[1719405592515,14.50320962,136.76,136.7,51.2593]
[1719405592722,14.50320962,136.76,136.7,31.6243]
[1719405593217,14.50320962,136.76,136.7,58.5743]
[1719405593925,7.19100962,136.76,136.71,7.3146]
[1719405594428,14.50310962,136.76,136.7,31.6244]
[1719405594620,14.50310962,136.76,136.7,58.5744]
[1719405595121,7.3116,136.77,136.71,7.3145]
[1719405595318,7.3116,136.77,136.71,34.2645]
[1719405595913,7.3122,136.76,136.71,26.95]
[1719405596313,7.3122,136.76,136.7,58.5744]
[1719405596634,7.3122,136.76,136.7,31.6244]
[1719405596822,7.3122,136.76,136.7,58.5744]
[1719405597215,7.3126,136.75,136.7,58.5744]
[1719405597420,7.3126,136.75,136.7,24.3093]
[1719405597625,7.3134,136.74,136.7,6.0224]
[1719405598329,34.2638,136.73,136.7,6.0224]
[1719405599036,26.95,136.73,136.7,6.0224]
[1719405599612,7.3137,136.73,136.7,6.0224]
[1719405600029,26.95,136.72,136.7,6.0224]
[1719405601321,7.3127,136.75,136.7,6.0224]
[1719405601526,26.95,136.73,136.7,6.0224]
[1719405604349,7.3128,136.75,136.7,6.0224]
[1719405604529,7.3132,136.74,136.7,6.0224]
[1719405605942,26.95,136.78,136.7,6.0224]
[1719405606147,7.3123,136.76,136.7,31.6255]
[1719405606333,7.3139,136.73,136.7,6.0224]
[1719405606716,7.3133,136.74,136.7,6.0224]
[1719405606921,7.3128,136.75,136.7,6.0224]
[1719405607319,7.3131,136.74,136.7,6.0224]
[1719405608041,7.3128,136.75,136.7,6.0224]
[1719405608229,7.19100962,136.76,136.7,6.0224]
[1719405609344,7.3132,136.74,136.7,6.0224]
[1719405610746,7.3128,136.75,136.7,6.0224]
[1719405611538,7.3127,136.75,136.7,6.0224]
[1719405612141,7.3132,136.74,136.7,6.0224]
[1719405614549,7.3128,136.75,136.7,13.3376]
[1719405615045,7.19100962,136.76,136.71,7.3143]
[1719405615423,7.19100962,136.76,136.71,25.6011]
[1719405615642,14.50320962,136.76,136.71,18.2868]
[1719405616138,7.3131,136.74,136.7,6.0224]
[1719405616350,7.19100962,136.76,136.71,7.3143]
[1719405616538,14.50310962,136.76,136.7,31.6244]
[1719405616724,7.3139,136.73,136.7,6.0224]
[1719405616931,7.3129,136.75,136.7,6.0224]
[1719405617935,14.50310962,136.76,136.7,13.3375]
[1719405619337,7.3127,136.75,136.7,13.3375]
[1719405619728,14.50320962,136.76,136.7,13.3375]
[1719405620148,7.3128,136.75,136.7,6.0224]
[1719405620352,7.3133,136.74,136.7,6.0224]
[1719405621639,7.3128,136.75,136.7,6.0224]
[1719405621949,7.3128,136.75,136.7,13.3376]
[1719405622270,7.3128,136.75,136.7,6.0224]
[1719405623053,7.19100962,136.76,136.7,6.0224]
[1719405623232,7.19100962,136.76,136.72,7.3141]
[1719405623427,5.90766338,136.79,136.72,7.3141]
[1719405623733,7.19100962,136.79,136.72,7.3141]
[1719405623938,7.3111,136.78,136.72,7.3141]
[1719405624140,7.3111,136.78,136.72,7.3139]
[1719405624353,7.3116,136.77,136.72,7.3139]
[1719405624551,7.311,136.78,136.72,7.3139]
[1719405624760,7.311,136.78,136.73,16.6516]
[1719405625450,7.3116,136.77,136.73,16.6516]
[1719405627153,7.3111,136.78,136.73,16.6516]
[1719405627360,7.3111,136.78,136.73,23.9652]
[1719405628154,7.19100962,136.79,136.74,13.8484]
[1719405628354,7.19100962,136.79,136.75,7.312]
[1719405628558,7.19100962,136.79,136.76,7.312]
[1719405629243,7.19100962,136.79,136.75,25.5936]
[1719405629978,7.19100962,136.79,136.75,52.5436]
[1719405630186,7.3091,136.82,136.76,7.3119]
[1719405630356,7.3091,136.82,136.77,15.5305]
[1719405630557,7.3094,136.81,136.77,15.5305]
[1719405636688,26.95,136.78,136.77,15.5305]
[1719405637688,26.95,136.78,136.74,6.5355]
[1719405637862,26.95,136.78,136.74,23.0005]
[1719405638187,26.95,136.78,136.74,30.3136]
[1719405643068,14.50060962,136.81,136.75,18.2815]
[1719405643384,26.95,136.79,136.76,7.312]
[1719405643989,26.95,136.79,136.75,25.5939]
[1719405646963,7.19100962,136.81,136.77,18.2786]
[1719405647156,7.19100962,136.81,136.77,25.5899]
[1719405647357,7.19100962,136.81,136.77,18.2786]
[1719405648280,14.50050962,136.81,136.76,7.3118]
[1719405649083,14.50050962,136.81,136.75,34.2624]
[1719405649578,14.50050962,136.81,136.75,7.3124]
[1719405650084,14.50050962,136.81,136.76,7.312]
[1719405650376,7.19100962,136.81,136.76,7.312]
[1719405650680,7.19100962,136.81,136.77,7.3111]
[1719405650984,7.3085,136.83,136.77,7.3111]
[1719405651162,7.307,136.86,136.8,7.3095]
[1719405651365,7.3063,136.87,136.81,7.309]
[1719405651872,7.3058,136.88,136.82,7.3086]
[1719405652077,7.3063,136.87,136.82,34.2586]
[1719405652284,7.3063,136.87,136.83,1.37234041]
[1719405652467,7.3058,136.88,136.83,1.37234041]
[1719405653171,7.3053,136.89,136.83,7.3083]
[1719405653573,7.3057,136.88,136.82,34.2588]
[1719405653776,7.3062,136.87,136.81,52.5326]
[1719405654164,7.3057,136.88,136.82,7.3087]
[1719405655093,7.3057,136.88,136.82,34.2587]
[1719405656179,7.3062,136.87,136.81,25.5826]
[1719405656495,7.3062,136.87,136.81,52.5326]
[1719405659001,7.3074,136.85,136.8,7.3098]
[1719405659368,7.3069,136.86,136.8,7.3098]
[1719405659682,7.3069,136.86,136.81,7.3092]
[1719405659984,7.3063,136.87,136.81,25.5826]
[1719405661365,0.17,136.88,136.8,7.3098]
[1719405661589,7.3069,136.86,136.8,7.3098]
[1719405662781,7.3073,136.85,136.8,7.3098]
[1719405663379,7.53100962,136.88,136.79,22.8812]
[1719405663582,25.45700962,136.87,136.79,22.8812]
[1719405663781,0.34,136.86,136.79,22.8812]
[1719405664088,14.90611472,136.89,136.83,7.3082]
[1719405664293,5.81200503,136.9,136.83,7.3082]
[1719405664492,7.3054,136.89,136.83,7.3082]
[1719405664679,7.19100962,136.9,136.83,7.3082]
[1719405665676,0.17,136.89,136.83,7.3082]
[1719405666171,7.3057,136.88,136.82,7.3086]
[1719405666396,7.53100962,136.87,136.79,41.1573]
[1719405666593,7.3073,136.85,136.8,7.3096]
[1719405666795,7.3073,136.85,136.79,48.4675]
[1719405667003,7.3078,136.84,136.79,48.4675]
[1719405667215,7.3083,136.83,136.79,22.8812]
[1719405667403,18.2668,136.86,136.79,22.8812]
[1719405667591,7.309,136.82,136.79,6.2869]
[1719405668509,7.3095,136.81,136.76,48.5117]
[1719405669791,7.36100962,136.85,136.76,48.5117]
[1719405669792,7.3091,136.82,136.76,48.5117]
[1719405670113,7.3079,136.84,136.78,7.3106]
[1719405670285,26.95,136.82,136.79,7.3103]
[1719405670804,26.95,136.82,136.78,25.5883]
[1719405671189,7.3078,136.84,136.78,25.5883]
[1719405671992,7.3078,136.84,136.79,7.3103]
[1719405672406,7.3078,136.84,136.78,25.5881]
[1719405672903,41.61840962,136.85,136.79,7.3103]
[1719405673109,7.3078,136.84,136.79,7.3103]
[1719405673711,7.3078,136.84,136.78,25.5883]
[1719405674712,34.31100962,136.85,136.77,7.3114]
[1719405674921,0.17,136.84,136.77,7.3114]
[1719405675788,7.309,136.82,136.77,7.3114]
[1719405676216,7.3095,136.81,136.76,30.2328]
[1719405676604,7.3095,136.81,136.76,22.921]
[1719405677502,7.3095,136.81,136.76,30.233]
[1719405678309,7.3091,136.82,136.76,30.233]
[1719405679224,7.3091,136.82,136.77,7.3115]
[1719405679812,7.478,136.84,136.78,7.3109]
[1719405680018,7.308,136.84,136.78,7.3109]
[1719405680518,7.3084,136.83,136.78,7.3109]
[1719405681619,7.309,136.82,136.77,25.5899]
[1719405681934,26.95,136.8,136.76,30.2328]
[1719405682108,7.3094,136.81,136.76,30.2328]
[1719405682717,0.17,136.82,136.76,6.659]
[1719405683030,0.34,136.82,136.76,6.659]
[1719405683395,7.3096,136.81,136.76,6.659]
[1719405683595,7.3096,136.81,136.76,13.971]
[1719405683902,7.6489,136.82,136.76,13.9707]
[1719405684097,26.95,136.79,136.76,13.9707]
[1719405685224,7.64495233,136.83,136.76,6.659]
[1719405685516,7.3093,136.82,136.76,13.9707]